Cogmind - Beta 16 @@@ ROGUE MODE // 2025.10.27 @ 08:57:07 Player: Lazz Result: Smashed by cave-in Performance ------------- Evolutions (1) 500 Regions Visited (4) 800 Robots Destroyed (32) 160 Value Destroyed (895) 895 Prototype IDs (3) 60 Alien Tech Used (0) 0 Bonus (290) 290 TOTAL SCORE: 2705 Bonus ------- Follower Combat Kills 290 Cogmind --------- Core Integrity 0/400 Matter 292/300 Energy 100/100 System Corruption 30% Temperature Cool (0) Movement Core (50) Location -9/Storage Parts ------- > --- POWER (1) -------- (None) > --- PROPULSION (3) --- (None) > --- UTILITY (3) ------ (None) > --- WEAPON (2) ------- Small Laser > --- INVENTORY (5) ---- Improved Ion Engine Peak State ------------ > --- POWER ------------ Light Nuclear Core > --- PROPULSION ------- Titanium Leg Titanium Leg Titanium Leg > --- UTILITY ---------- Signal Interpreter Advanced Targeting Computer Hacking Suite > --- WEAPON ----------- Improved EM Shotgun Makeshift Axe > --- INVENTORY -------- Ion Engine Titanium Leg Small Laser Particle Gun [Rating: 26] Favorites ----------- Power Light Nuclear Core Engine Ion Engine Power Core Light Nuclear Core Propulsion Titanium Leg Leg Titanium Leg Utility Hacking Suite Storage Small Storage Unit Processor Signal Interpreter Hackware Hacking Suite Weapon Makeshift Axe Energy Gun Small Laser Ballistic Gun Light Assault Rifle Launcher Grenade Launcher Special Weapon Mining Laser Slashing Weapon Makeshift Axe Build | -11 -10 -10 -9 -9 ------- Run | Yrd Mat Min Mat Sto Slots Evolved 2 | . . . 2 . Power . | . . . . . Propulsion 1 | . . . 1 . Utility 1 | . . . 1 . Weapon . | . . . . . Parts Attached 34 | 4 6 9 6 9 Power 5 | 1 1 1 . 2 Engine 4 | 1 1 . . 2 Core 1 | . . 1 . . Reactor . | . . . . . Propulsion 12 | . 3 3 4 2 Treads . | . . . . . Leg 12 | . 3 3 4 2 Wheel . | . . . . . Hover . | . . . . . Flight . | . . . . . Utility 4 | 1 2 . 1 . Device . | . . . . . Storage 1 | 1 . . . . Processor 2 | . 1 . 1 . Hackware 1 | . 1 . . . Protection . | . . . . . Artifact . | . . . . . Weapon 13 | 2 . 5 1 5 Energy Gun 5 | 1 . . 1 3 Energy Cannon . | . . . . . Ballistic Gun 4 | 1 . 2 . 1 Ballistic Cannon . | . . . . . Launcher 1 | . . 1 . . Special Weapon 1 | . . 1 . . Impact Weapon . | . . . . . Slashing Weapon 2 | . . 1 . 1 Piercing Weapon . | . . . . . Special Melee Weapon . | . . . . . Unidentified Prototypes 1 | . . . 1 . Parts Lost 17 | . 1 2 1 13 Power 5 | . 1 1 . 3 Propulsion 5 | . . 1 . 4 Utility 3 | . . . . 3 Weapon 4 | . . . 1 3 Highest Loss Streak 3 | . 1 2 1 3 To Critical Strikes . | . . . . . Average Backups 4 | 4 6 4 4 3 Power 1 | . 1 1 1 1 Propulsion 1 | 3 2 . . . Utility . | . . . . . Weapon 2 | . 2 3 2 1 Tool/Special . | . . . . . Unused Backups 4 | . 3 . . 1 Power 1 | . . . . 1 Propulsion 2 | . 2 . . . Utility . | . . . . . Weapon 1 | . 1 . . . Tool/Special . | . . . . . Average Slot Usage (%) 89 | . 89 99 94 84 Engine 4 | . 11 . . 5 Core 6 | . . 13 11 3 Leg 26 | . 21 27 33 26 Storage 2 | . 13 . . . Processor 14 | . . 14 18 18 Hackware 10 | . 12 14 11 8 Energy Gun 8 | . 14 . 2 13 Ballistic Gun 6 | . 14 15 . . Launcher 1 | . . 5 . . Special Weapon 1 | . . 2 6 . Slashing Weapon 6 | . . 4 11 7 Peak Build Rating 26 | 4 9 14 26 26 Average Rating 15 | 3 8 11 22 19 On Entrance 10 | . 4 9 14 26 Avg Prop Armor Cover (%) . | . . . . . Naked Turns . | . . . . . Heaviest Build 12 | 12 12 9 11 11 Greatest Support 51 | 3 20 20 51 51 Greatest Overweight (x) 3 | 3 3 . . 1 Average Overweight (x) . | 2 . . . . Largest Inventory Capacity 8 | 8 8 5 5 5 Average Capacity 5 | 7 7 5 5 5 Most Carried 8 | 6 8 5 5 5 Average Carried 4 | 4 6 4 4 3 Final Capacity 8 | 8 5 5 5 5 Final Carried 6 | 6 5 5 4 1 Class Distribution -------------------- 57% | Mutant 26% | Scavenger-Mutant 16% | Commander-Mutant Dominant Class ---------------- Mutant | -10/Materials Scavenger-Mutant | -10/Mines Mutant | -9/Materials Mutant | -9/Storage Resources | -11 -10 -10 -9 -9 ----------- Run | Yrd Mat Min Mat Sto Matter Collected 601 | 240 67 169 65 60 Remotely . | . . . . . Salvage Created 1049 | . 268 144 81 556 Parts 78 | . 19 15 9 35 Haulers Intercepted 2 | . . . 1 1 Recyclers Shooed . | . . . . . Parts Field Recycled . | . . . . . Retrieved Matter . | . . . . . Parts Self-Destructed . | . . . . . Prevented . | . . . . . Parts Restored . | . . . . . Kills | -11 -10 -10 -9 -9 ------- Run | Yrd Mat Min Mat Sto Combat Hostiles Destroyed 26 | . 8 7 1 10 Melee 1 | . . . . 1 Guns 17 | . 8 1 . 8 Cannons 1 | . . . 1 . AOE 7 | . . 6 . 1 Classes Destroyed 10 | . 4 . 2 4 Worker 1 | . . . 1 . Builder 1 | . . . . 1 Hauler 2 | . . . 1 1 Operator 1 | . 1 . . . Watcher 1 | . 1 . . . Swarmer 6 | . 3 3 . . Grunt 15 | . 5 4 1 5 Duelist 1 | . . . . 1 Protector 1 | . . . . 1 Sentry 3 | . . . . 3 Best Kill Streak 4 | . 3 4 1 3 Combat Bots Only 4 | . 3 4 1 3 Max Kills in Single Turn 3 | . 1 3 1 1 Gunslinging . | . . . . . Exploded 3 | . . 3 . 1 Melee 1 | . . . . 1 Uniques/NPCs Destroyed . | . . . . . Combat | -11 -10 -10 -9 -9 -------- Run | Yrd Mat Min Mat Sto Hostile Shots Fired 165 | . 50 49 26 40 Missed 52 | . 14 12 11 15 Hits 113 | . 36 37 15 25 Melee 6 | . . 3 . 3 Projectile 107 | . 36 34 15 22 Critical Strikes 2 | . . 1 . 1 Damage Taken 2516 | . 346 528 173 1469 Core 584 | . 100 79 14 391 Absorbed by Shields . | . . . . . Core Remaining (%) 64 | 100 . 28 . . Volleys Fired 94 | . 38 17 4 35 Largest 2 | . 2 2 1 2 Hottest 100 | . 60 100 100 96 Shots Fired 142 | . 75 27 4 36 Gun 128 | . 75 17 . 36 Cannon . | . . . . . Launcher 6 | . . 6 . . Special 8 | . . 4 4 . Kinetic 53 | . 38 15 . . Thermal 53 | . 37 6 4 6 Explosive 6 | . . 6 . . Electromagnetic 30 | . . . . 30 Robot Hit Streak 37 | . 12 4 3 37 Robot Miss Streak 4 | . 4 4 1 4 Penetration Max . | . . . . . Secondary Targets . | . . . . . Shots Hit Robots 100 | . 48 10 5 37 Core Hits 58 | . 18 15 3 22 Critical Kills . | . . . . . Critical Parts Destroyed . | . . . . . Critical Strikes . | . . . . . Melee Attacks 37 | . . 5 6 26 Impact . | . . . . . Slashing 37 | . . 5 6 26 Piercing . | . . . . . Sneak Attacks 6 | . . . 2 4 Combat Hostiles . | . . . . . Follow-up Attacks . | . . . . . Damage Inflicted 2208 | . 505 417 253 1033 Guns 1084 | . 504 80 . 500 Cannons . | . . . . . Explosions 423 | . . 334 . 89 Melee 666 | . . . 229 437 Ramming 11 | . 1 3 . 7 Kinetic 320 | . 240 80 . . Thermal 402 | . 264 . 24 114 Explosive 334 | . . 334 . . Electromagnetic 475 | . . . . 475 Impact . | . . . . . Slashing 666 | . . . 229 437 Piercing . | . . . . . Highest Corruption 30 | . . . . 30 Average Corruption 19 | . . . . 19 Corruption Purged . | . . . . . Corruption Blocked . | . . . . . Effects 7 | . . . . 7 Message Errors 2 | . . . . 2 Matter Fused 1 | . . . . 1 Heat Flow Errors 1 | . . . . 1 Energy Discharges 1 | . . . . 1 Parts Fused 1 | . . . . 1 Data Loss (major) 1 | . . . . 1 Overload Shots . | . . . . . Overflow Damage 98 | . . . . 98 Projectiles . | . . . . . Explosions 1 | . . . . 1 Melee 97 | . . . . 97 Knockbacks . | . . . . . Impact . | . . . . . Kinetic . | . . . . . Secondary . | . . . . . Self-Inflicted Damage 61 | . . 20 . 41 Shots 5 | . . 3 . 2 Rammed . | . . . . . Targets Rammed 3 | . 1 2 . . Kicked 3 | . 1 2 . . Crushed . | . . . . . Highest Temperature 235 | . 118 73 32 235 Average Temperature 35 | . 45 23 16 37 Received Heat Transfer 557 | . 114 242 72 129 Siege Activations . | . . . . . Martial Activations . | . . . . . Shielding Activations . | . . . . . Robots Disrupted . | . . . . . Combat Hostiles . | . . . . . Robots Corrupted . | . . . . . Combat Hostiles . | . . . . . Parts Fried 1 | . . . . 1 Impact Corruptions . | . . . . . Robots Melted . | . . . . . Combat Hostiles . | . . . . . Parts Melted . | . . . . . Heat Transferred 788 | . 600 . 50 138 Parts Sabotaged . | . . . . . Parts Stolen . | . . . . . Parts Stripped . | . . . . . Power Chain Reactions 2 | . . . . 2 Alert | -11 -10 -10 -9 -9 ------- Run | Yrd Mat Min Mat Sto Maximum Alert Level 1 | . . . . 1 Low Security (%) 92 | 100 100 100 100 83 Level 1 7 | . . . . 16 Level 2 . | . . . . . Level 3 . | . . . . . Level 4 . | . . . . . Level 5 . | . . . . . High Security . | . . . . . Max Security . | . . . . . Peak Influence 253 | . 122 193 39 253 Initial 35 | . . 35 29 7 Average 95 | . 51 129 20 118 Influence Increases 1155 | . 217 313 77 548 Destroy 0b10 Robot/C 700 | . 160 180 20 340 Destroy 0b10 Robot/NC 35 | . 10 . 10 15 Destroy Leader 166 | . 32 40 2 92 Allied During Kill 53 | . . 3 . 50 Successful Hack 12 | . . . 12 . Disable Machine 75 | . . 45 . 30 Destroy Structure 54 | . . 45 3 6 Lose Combat Pursuer 60 | . 15 . 30 15 Influence Decreases 1092 | . 125 327 138 502 Entered New Map 116 | . . 57 49 10 Time Decay 726 | . 115 230 79 302 Lost Part 170 | . 10 20 10 130 Lost Ally 80 | . . 20 . 60 Squads Dispatched 9 | . 3 . . 6 Investigation 3 | . 2 . . 1 Extermination . | . . . . . Reinforcement 3 | . 1 . . 2 Assault 2 | . . . . 2 Garrison 1 | . . . . 1 Intercept . | . . . . . Searches Triggered . | . . . . . Construction Impeded . | . . . . . Haulers Reinforced . | . . . . . Active Scanning Responses . | . . . . . Cargo Convoy Interrupts . | . . . . . Stealth | -11 -10 -10 -9 -9 --------- Run | Yrd Mat Min Mat Sto Distress Signals 9 | . 4 1 1 3 Communications Jammed . | . . . . . Distress Signals . | . . . . . Times Spotted 68 | . 14 20 10 24 Peak Tracking Total 12 | . 4 12 6 10 Tactical Retreats 7 | . 1 3 2 1 Traps | -11 -10 -10 -9 -9 ------- Run | Yrd Mat Min Mat Sto Traps Triggered 2 | . . . . 2 Indirectly . | . . . . . Trap Hack Attempts . | . . . . . Triggered . | . . . . . Disarmed . | . . . . . Reprogrammed . | . . . . . Reused . | . . . . . Traps Extracted . | . . . . . Installed . | . . . . . Triggered . | . . . . . Machines | -11 -10 -10 -9 -9 ---------- Run | Yrd Mat Min Mat Sto Machines Disabled 5 | . . 3 . 2 Max in Single Turn 2 | . . 2 . 1 Garrison Access 1 | . . . . 1 Machines Repaired . | . . . . . Machines Dismantled . | . . . . . Machines Sabotaged . | . . . . . Overloaded Fab Kills . | . . . . . Hacking | -11 -10 -10 -9 -9 --------- Run | Yrd Mat Min Mat Sto Machines Accessed 5 | . 2 . 2 1 Terminals 3 | . 1 . 2 . Fabricators . | . . . . . Repair Stations . | . . . . . Recycling Units 1 | . 1 . . . Scanalyzers . | . . . . . Garrison Access 1 | . . . . 1 Total Hacks 14 | . 5 . 5 4 Successful 6 | . 1 . 4 1 Failed 8 | . 4 . 1 3 Catastrophic 2 | . 1 . 1 . Database Lockouts . | . . . . . Manual 1 | . . . . 1 Terminals 8 | . 3 . 5 . Fabricators . | . . . . . Repair Stations . | . . . . . Recycling Units 2 | . 2 . . . Scanalyzers . | . . . . . Garrison Access 4 | . . . . 4 Terminal Hacks 4 | . . . 4 . Prototype ID Bank 1 | . . . 1 . Scanalyzer Index 1 | . . . 1 . Security Status 1 | . . . 1 . Hauler Manifests 1 | . . . 1 . Fabricator Hacks . | . . . . . Repair Station Hacks . | . . . . . Recycling Unit Hacks 1 | . 1 . . . Retrieve Components 1 | . 1 . . . Scanalyzer . | . . . . . Garrison Access Hacks 1 | . . . . 1 Seal Access 1 | . . . . 1 Unauthorized Hacks . | . . . . . Terminals . | . . . . . Fabricators . | . . . . . Repair Stations . | . . . . . Recycling Units . | . . . . . Scanalyzers . | . . . . . Garrison Access . | . . . . . Data Cores Recovered 1 | . 1 . . . Used 1 | . 1 . . . Hacking Detections 5 | . 2 . 2 1 Full Trace Events 3 | . 2 . 1 . Feedback Events . | . . . . . Feedback Blocked . | . . . . . Robot Schematics Acquired . | . . . . . Robots Built . | . . . . . Authchips . | . . . . . Time . | . . . . . Total Robot Build Rating . | . . . . . Part Schematics Acquired . | . . . . . Parts Built . | . . . . . Authchips . | . . . . . Time . | . . . . . Total Part Build Rating . | . . . . . Part Studies Acquired . | . . . . . Parts Repaired . | . . . . . Time . | . . . . . Parts Recycled . | . . . . . Recycled Matter . | . . . . . Retrieved Matter . | . . . . . Retrieved Components 2 | . 2 . . . Parts Scanalyzed . | . . . . . Part Schematics Acquired . | . . . . . Parts Damaged . | . . . . . Bothacking | -11 -10 -10 -9 -9 ------------ Run | Yrd Mat Min Mat Sto Used RIF Installer . | . . . . . Robots Hacked . | . . . . . Non-combat . | . . . . . Combat . | . . . . . Robot Hacks Applied . | . . . . . Relay Couplers Released . | . . . . . Fabnet Peak Effective % . | . . . . . Robots Rewired . | . . . . . Allies Hacked . | . . . . . Hacks Repelled . | . . . . . Allies | -11 -10 -10 -9 -9 -------- Run | Yrd Mat Min Mat Sto Total Allies 14 | . . 2 . 12 Largest Group 9 | . . 2 . 9 Highest-Rated Group 80 | . . 54 . 80 Highest-Rated Ally 31 | . . 31 . 31 Total Orders . | . . . . . Ally Attacks 61 | . . 22 . 39 Total Damage 677 | . . 246 . 431 Kills 17 | . . 7 . 10 Allies Corrupted . | . . . . . Allies Melted . | . . . . . Intel | -11 -10 -10 -9 -9 ------- Run | Yrd Mat Min Mat Sto Active Infowar (turns) . | . . . . . Robot Analysis Total . | . . . . . Derelict Logs Recovered 1 | . . 1 . . Drone Launches . | . . . . . Drone Recoveries . | . . . . . Exploration | -11 -10 -10 -9 -9 ------------- Run | Yrd Mat Min Mat Sto Turns Passed 2032 | 90 318 488 198 938 Spaces Moved 1028 | 46 141 341 118 382 Core 79 | 46 29 . . 4 Treads . | . . . . . Legs 949 | . 112 341 118 378 Wheels . | . . . . . Hover . | . . . . . Flight . | . . . . . Fastest Speed 50 | 50 120 120 120 100 Average Speed 128 | 168 136 120 128 129 Slowest Speed 200 | 200 200 120 130 130 Overloaded Moves . | . . . . . Propulsion Burnouts . | . . . . . Robots Hopped . | . . . . . Potential Cave-ins 17 | . . 3 . 14 Cave-ins Triggered 10 | . . . . 10 Exploration Rate (%) 34 | 3 35 65 14 57 Regions Visited 4 Branch Regions 2 Pre-discovered Areas . | . . . . . Known Exits Taken 3 | . 1 1 1 . Unknown Exits Taken 1 | 1 . . . . Scrap Searched . | . . . . . Spaces Dug 15 | . . 5 2 8 Terrain Destroyed 68 | . . 52 3 13 Melee 9 | . . 1 . 8 Projectile 7 | . . 4 3 . AOE 52 | . . 47 . 5 Terrain Rammed 3 | . . . . 3 Walls Destroyed . | . . . . . Machines Disabled . | . . . . . Actions | -11 -10 -10 -9 -9 --------- Run | Yrd Mat Min Mat Sto Total 1545 | 59 200 383 149 754 Wait 303 | . 3 . 8 292 Move 1023 | 45 140 340 117 381 Hop . | . . . . . Pick Up 30 | 10 7 4 4 5 Fast Attach 5 | . 1 3 . 1 Attach 21 | 4 4 2 3 8 Detach . | . . . . . Swap 8 | . 1 4 3 . Drop 16 | . 5 6 4 1 Fire 94 | . 38 17 4 35 Melee 37 | . . 5 6 26 Ram 3 | . . . . 3 Kick 3 | . 1 2 . . Crush . | . . . . . Escape Stasis 1 | . . . . 1 Rewire 1 | . . . . 1 Trap . | . . . . . Miscellaneous . | . . . . . Route ------- -11/Scrapyard -10/Materials -10/Mines (discovered 2 exits: *Mat x2) -9/Materials -9/Storage (discovered 1 exit: *Mat) History --------- Turn | Location | Event 16 | -11/Scrapyard | Discovered new exit (range 14) 91 | -11/Scrapyard | Entered Materials 310 | -10/Materials | Build established: Mutant 351 | -10/Materials | Discovered new exit (range 16) 408 | -10/Materials | Identified exit to Mines 409 | -10/Materials | Entered Mines 422 | -10/Mines | Core integrity fell below 50% 481 | -10/Mines | Discovered new exit (range 14) 502 | -10/Mines | Identified exit to Materials 513 | -10/Mines | Learned Materials trap positions 536 | -10/Mines | Discovered exit to Materials (range 10) 690 | -10/Mines | Assembled infested the area 752 | -10/Mines | Build established: Scavenger-Mutant 897 | -10/Mines | Entered Materials 897 | -9/Materials | Evolved 2 slots: Propulsion x1, Utility x1 898 | -9/Materials | Loaded intel: 23 trap records 1079 | -9/Materials | Discovered new exit (range 12) 1093 | -9/Materials | Identified exit to Storage 1095 | -9/Materials | Entered Storage 1228 | -9/Storage | Build established: Mutant 1310 | -9/Storage | Met a pair of Derelict thieves 1505 | -9/Storage | Discovered new exit (range 15) 1524 | -9/Storage | Identified exit to Materials 1603 | -9/Storage | Garrison activated, responded to threat 1704 | -9/Storage | Assisted by bots powering up and referring to "LRC-V3" 1825 | -9/Storage | Crushed by falling debris 1856 | -9/Storage | Lost 3 parts (1p1u1w) 1873 | -9/Storage | Crushed by falling debris 1873 | -9/Storage | System corruption reached 10% 1909 | -9/Storage | Crushed by falling debris 1924 | -9/Storage | Crushed by falling debris 1931 | -9/Storage | Crushed by falling debris 1962 | -9/Storage | Lost 3 parts (1n1u1w) 1977 | -9/Storage | Crushed by falling debris 1977 | -9/Storage | Core integrity fell below 50% 1983 | -9/Storage | Crushed by falling debris 1995 | -9/Storage | Crushed by falling debris 1995 | -9/Storage | System corruption reached 30% 2007 | -9/Storage | Build established: Commander-Mutant 2010 | -9/Storage | Crushed by falling debris 2010 | -9/Storage | Core integrity fell below 20% 2034 | -9/Storage | Crushed by falling debris 2034 | -9/Storage | Smashed by cave-in Last Messages --------------- System corrupted by crushing effect (+2). System corrupted: Aluminum Leg fused. System corrupted: Substantial component data lost. GAWMFSN=#RETM1H5XNTIZ9I%|W 1 The unstable cave ceiling collapses. Crushed by falling debris. The unstable cave ceiling collapses. Crushed by falling debris. The unstable cave ceiling collapses. Crushed by falling debris. Aluminum Leg destroyed. System corrupted by crushing effect (+2). Imp. Ion Engine destroyed. System corrupted by crushing effect (+4). The unstable cave ceiling collapses. Crushed by falling debris. AQWQF,%X|OCQTH Q,US The unstable cave ceiling collapses. Crushed by falling debris. Map ----- +----------------------------------------------------+ | ???????????"""??# ! ""#?" | | ????????????#???# *[ "#?T | | ????????????????# ! ""#?" | | ???????????????## """ =%"###?# " | | ?????????????? # """ [ "#??#%" | | ?????????????? + """ * "####!" | | ?????????????? # %= %/=" | | ?????????????? # ! #####%" | | ?????????????" # ##############= | | ????????????? # #?# ## | | ????????????#+## #?# """ """ ##+# | | ??????#####?# ## #?# """ """ # | | ??????# ### ##=! #?# """ """ / | | ??????# # %[ ### # | | ??????# # =[ + [ #### | | ??????# [%!/% ## ######/ = #??? | | ??????# T##= ## ### = ! #??? | | ??????###### ## ######%#####??? | | ???????????# T# #????###??????? | | ???????????# ##[ #?????????????? | | ???????????""""# #?????????????? | | ???????????????# ?##?????????????? | | ???????????????#= ?????????????????? | | ?????????###???#%#?????????????????? | | ????????######## #?????????????????? | | ????????###@# ## #?????????????????? | | ????????##########?????????????????? | | ???????????????????????????????????? | | ???????????????????????????????????? | | ???????????????????????????????????? | | ???????????????????????????????????? | | ???????????????????????????????????? | | ???????????????????????????????????? | | ???????????????????????????????????? | | ???????????????????????????????????? | | | | | | | | | | | | | | | | | | | | | | | | | | | | | | | +----------------------------------------------------+ Best States ------------- Heat Dissipation 28 Energy Generation 14 Energy Capacity 265 Matter Stores 300 Matter Capacity 300 Sight Range 16 Terrain Scan Density 10 Evasion (%) 55 Targeting Accuracy 8 Offensive Hacking 10 Item Schematics ----------------- None Robot Schematics ------------------ None Fabricated ------------ Nothing Repaired ---------- Nothing Studied --------- None Alien Tech Used ----------------- None Achievements -------------- I Survived The Infestation Part-time Excavator Slippery One Challenges ------------ None Game ------ Seed MatterVariableCorpse Manual? 0 Play Time 00:24:34 Cumulative 28.3 hours Start 2025.10.27 @ 08:33:18 End 2025.10.27 @ 08:57:07 Sessions 1 Manual Loads 0 Difficulty Rogue Special Mode None Game No. 36 Rogue 36 Adventurer 0 Explorer 0 Win Type - Total 0 Types 0/0/0/0/0/0/0/0/0/0 Lore% 26 Gallery% 28 Achievement% 22 Wizard Run 0 Options --------- Layout 2 ASCII 0 Keyboard 0 Movement Mouse Keybinds 0 Fullscreen 1 Font 16/SmallcapsGlow Map View 25x24 Zoom Use 100% Tactical HUD 0 Map Filters NONE Filters NONE Steam SD RUN: 27085471-37f4-40da-92c4-dd82dd108182